[Event "Titled Tuesday Blitz May 31 Late 2022"]
[White "Romanchuk, Viktor"]
[Black "Ozdemir, Serhan Berat"]
[WhiteFideId "14109271"]
[BlackFideId "6374611"]
[WhiteElo "2242"]
[BlackElo "1920"]
[Result "1-0"]
[Round "06"]
[TimeControl "180+1"]
[Date "2022.06.01"]
[WhiteClock "0:00:35"]
[BlackClock "0:00:02"]

1. d4 {[%clk 0:03:00]}  Nf6 {[%clk 0:02:59]} 2. c4 {[%clk 0:02:58]}  g6 {[%clk 0:02:57]} 3. Nf3 {[%clk 0:02:58]}  Bg7 {[%clk 0:02:57]} 4. g3 {[%clk 0:02:58]}  O-O {[%clk 0:02:57]} 5. Bg2 {[%clk 0:02:59]}  d6 {[%clk 0:02:57]} 6. O-O {[%clk 0:02:59]}  c6 {[%clk 0:02:57]} 7. Nc3 {[%clk 0:02:59]}  Qa5 {[%clk 0:02:54]} 8. e4 {[%clk 0:02:59]}  e5 {[%clk 0:02:48]} 9. h3 {[%clk 0:02:57]}  Nbd7 {[%clk 0:02:44]} 10. Re1 {[%clk 0:02:55]}  Re8 {[%clk 0:02:36]} 11. Be3 {[%clk 0:02:45]}  exd4 {[%clk 0:02:26]} 12. Nxd4 {[%clk 0:02:46]}  a6 {[%clk 0:02:16]} 13. Qc2 {[%clk 0:02:29]}  Ne5 {[%clk 0:02:04]} 14. b3 {[%clk 0:02:26]}  c5 {[%clk 0:02:02]} 15. Nde2 {[%clk 0:02:21]}  Be6 {[%clk 0:01:54]} 16. Red1 {[%clk 0:02:17]}  Rad8 {[%clk 0:01:52]} 17. Nd5 {[%clk 0:02:13]}  Bxd5 {[%clk 0:01:45]} 18. cxd5 {[%clk 0:02:09]}  b5 {[%clk 0:01:40]} 19. a4 {[%clk 0:02:06]}  b4 {[%clk 0:01:26]} 20. f4 {[%clk 0:01:59]}  Ned7 {[%clk 0:01:25]} 21. Rac1 {[%clk 0:01:53]}  Nxe4 {[%clk 0:01:17]} 22. Bxe4 {[%clk 0:01:50]}  f5 {[%clk 0:01:18]} 23. Bxf5 {[%clk 0:01:34]}  gxf5 {[%clk 0:01:10]} 24. Bf2 {[%clk 0:01:31]}  Nf6 {[%clk 0:01:10]} 25. Kg2 {[%clk 0:01:24]}  Ne4 {[%clk 0:01:10]} 26. Ng1 {[%clk 0:01:23]}  Nxf2 {[%clk 0:01:01]} 27. Qxf2 {[%clk 0:01:20]}  Bd4 {[%clk 0:01:02]} 28. Qc2 {[%clk 0:01:19]}  Re4 {[%clk 0:00:48]} 29. Nf3 {[%clk 0:01:16]}  Rde8 {[%clk 0:00:49]} 30. Re1 {[%clk 0:01:01]}  Qd8 {[%clk 0:00:43]} 31. Rxe4 {[%clk 0:00:56]}  Rxe4 {[%clk 0:00:26]} 32. Ng5 {[%clk 0:00:56]}  Qa8 {[%clk 0:00:15]} 33. Nxe4 {[%clk 0:00:49]}  Qxd5 {[%clk 0:00:15]} 34. Re1 {[%clk 0:00:48]}  Bc3 {[%clk 0:00:13]} 35. Re2 {[%clk 0:00:46]}  fxe4 {[%clk 0:00:08]} 36. Qxe4 {[%clk 0:00:42]}  Qxe4+ {[%clk 0:00:08]} 37. Rxe4 {[%clk 0:00:43]}  d5 {[%clk 0:00:08]} 38. Re8+ {[%clk 0:00:43]}  Kf7 {[%clk 0:00:08]} 39. Rc8 {[%clk 0:00:44]}  c4 {[%clk 0:00:08]} 40. bxc4 {[%clk 0:00:42]}  d4 {[%clk 0:00:05]} 41. Kf3 {[%clk 0:00:41]}  b3 {[%clk 0:00:05]} 42. Rb8 {[%clk 0:00:39]}  b2 {[%clk 0:00:05]} 43. Ke4 {[%clk 0:00:39]}  a5 {[%clk 0:00:06]} 44. Rb3 {[%clk 0:00:38]}  Ke6 {[%clk 0:00:06]} 45. g4 {[%clk 0:00:38]}  h6 {[%clk 0:00:06]} 46. Kd3 {[%clk 0:00:37]}  Kd6 {[%clk 0:00:05]} 47. h4 {[%clk 0:00:37]}  Ke6 {[%clk 0:00:03]} 48. h5 {[%clk 0:00:36]}  Kf6 {[%clk 0:00:03]} 49. c5 {[%clk 0:00:35]}  Ke6 {[%clk 0:00:03]} 50. g5 {[%clk 0:00:35]}  hxg5 {[%clk 0:00:04]} 51. fxg5 {[%clk 0:00:35]}  Kf5 {[%clk 0:00:03]} 52. c6 {[%clk 0:00:35]}  Ke6 {[%clk 0:00:03]} 53. c7 {[%clk 0:00:35]}  Kd7 {[%clk 0:00:03]} 54. g6 {[%clk 0:00:35]}  Kxc7 {[%clk 0:00:02]} 55. g7 {[%clk 0:00:35]} 1-0


[Site "https://www.chess.com"]

[Event "Titled Tuesday Blitz May 31 Late 2022"]
[White "Sadhwani, Raunak"]
[Black "Halkias, Stelios"]
[WhiteFideId "35093487"]
[BlackFideId "4201809"]
[WhiteElo "2616"]
[BlackElo "2453"]
[Result "1-0"]
[Round "06"]
[TimeControl "180+1"]
[Date "2022.05.31"]
[WhiteClock "0:01:20"]
[BlackClock "0:00:51"]

1. e4 {[%clk 0:03:00]}  c5 {[%clk 0:02:59]} 2. Nf3 {[%clk 0:03:00]}  d6 {[%clk 0:03:00]} 3. Bb5+ {[%clk 0:02:59]}  Nd7 {[%clk 0:02:59]} 4. Be2 {[%clk 0:02:59]}  Ngf6 {[%clk 0:02:59]} 5. Nc3 {[%clk 0:02:59]}  e6 {[%clk 0:02:59]} 6. d4 {[%clk 0:02:59]}  cxd4 {[%clk 0:02:58]} 7. Qxd4 {[%clk 0:02:56]}  a6 {[%clk 0:02:54]} 8. a4 {[%clk 0:02:52]}  b6 {[%clk 0:02:50]} 9. Be3 {[%clk 0:02:53]}  Bb7 {[%clk 0:02:50]} 10. O-O {[%clk 0:02:52]}  Qc7 {[%clk 0:02:49]} 11. Nd2 {[%clk 0:02:52]}  Be7 {[%clk 0:02:31]} 12. Rfd1 {[%clk 0:02:44]}  O-O {[%clk 0:02:17]} 13. Nc4 {[%clk 0:02:43]}  e5 {[%clk 0:02:16]} 14. Qd3 {[%clk 0:02:42]}  Rfd8 {[%clk 0:02:15]} 15. Bg5 {[%clk 0:02:26]}  Nc5 {[%clk 0:02:01]} 16. Qe3 {[%clk 0:02:27]}  Nfxe4 {[%clk 0:01:46]} 17. Nxe4 {[%clk 0:02:26]}  Nxe4 {[%clk 0:01:38]} 18. Bxe7 {[%clk 0:02:25]}  Qxe7 {[%clk 0:01:38]} 19. Nxb6 {[%clk 0:02:25]}  Rab8 {[%clk 0:01:38]} 20. Bf3 {[%clk 0:02:23]}  f5 {[%clk 0:01:34]} 21. c4 {[%clk 0:02:14]}  Nf6 {[%clk 0:01:31]} 22. Bxb7 {[%clk 0:02:11]}  Rxb7 {[%clk 0:01:30]} 23. a5 {[%clk 0:02:11]}  Rbb8 {[%clk 0:01:27]} 24. Rd2 {[%clk 0:02:06]}  f4 {[%clk 0:01:26]} 25. Qf3 {[%clk 0:02:05]}  Qc7 {[%clk 0:01:19]} 26. b4 {[%clk 0:02:00]}  d5 {[%clk 0:01:09]} 27. cxd5 {[%clk 0:01:45]}  e4 {[%clk 0:00:53]} 28. d6 {[%clk 0:01:21]}  Qxb6 {[%clk 0:00:51]} 29. Qb3+ {[%clk 0:01:20]} 1-0


[Site "https://www.chess.com"]

[Event "Titled Tuesday Blitz May 31 Late 2022"]
[White "Shimanov, Aleksandr"]
[Black "Xiong, Jeffery"]
[WhiteFideId "4198603"]
[BlackFideId "2047640"]
[WhiteElo "2605"]
[BlackElo "2727"]
[Result "0-1"]
[Round "06"]
[TimeControl "180+1"]
[Date "2022.05.31"]
[WhiteClock "0:00:04"]
[BlackClock "0:00:21"]

1. e4 {[%clk 0:03:00]}  c5 {[%clk 0:02:59]} 2. Nf3 {[%clk 0:03:00]}  d6 {[%clk 0:03:00]} 3. d4 {[%clk 0:03:00]}  cxd4 {[%clk 0:03:01]} 4. Qxd4 {[%clk 0:03:01]}  Nc6 {[%clk 0:03:00]} 5. Bb5 {[%clk 0:03:01]}  a6 {[%clk 0:03:01]} 6. Bxc6+ {[%clk 0:03:00]}  bxc6 {[%clk 0:03:01]} 7. Nc3 {[%clk 0:02:59]}  e5 {[%clk 0:03:00]} 8. Qd3 {[%clk 0:02:57]}  Be7 {[%clk 0:03:00]} 9. O-O {[%clk 0:02:57]}  Be6 {[%clk 0:03:00]} 10. Rd1 {[%clk 0:02:53]}  Nf6 {[%clk 0:02:56]} 11. Bg5 {[%clk 0:02:51]}  Qa5 {[%clk 0:02:23]} 12. Bxf6 {[%clk 0:02:45]}  gxf6 {[%clk 0:02:24]} 13. Nh4 {[%clk 0:02:39]}  Rg8 {[%clk 0:02:24]} 14. b3 {[%clk 0:02:14]}  Rd8 {[%clk 0:02:24]} 15. Ne2 {[%clk 0:02:00]}  Rg4 {[%clk 0:02:17]} 16. Nf5 {[%clk 0:01:53]}  Bxf5 {[%clk 0:02:16]} 17. exf5 {[%clk 0:01:54]}  d5 {[%clk 0:02:15]} 18. Qh3 {[%clk 0:01:49]}  Rg7 {[%clk 0:02:15]} 19. Ng3 {[%clk 0:01:45]}  Qc5 {[%clk 0:02:05]} 20. Qh6 {[%clk 0:01:42]}  Rg4 {[%clk 0:02:04]} 21. Qxh7 {[%clk 0:01:39]}  Qxc2 {[%clk 0:01:57]} 22. Rac1 {[%clk 0:01:36]}  Qxa2 {[%clk 0:01:56]} 23. Rxc6 {[%clk 0:01:29]}  Qxb3 {[%clk 0:01:54]} 24. Rdc1 {[%clk 0:01:27]}  Rc4 {[%clk 0:01:46]} 25. h3 {[%clk 0:00:53]}  Rxc6 {[%clk 0:01:06]} 26. Rxc6 {[%clk 0:00:53]}  Qb7 {[%clk 0:01:07]} 27. Rc1 {[%clk 0:00:47]}  Ba3 {[%clk 0:00:59]} 28. Ra1 {[%clk 0:00:39]}  Qb2 {[%clk 0:00:56]} 29. Re1 {[%clk 0:00:35]}  Bc5 {[%clk 0:00:55]} 30. Re2 {[%clk 0:00:36]}  Qa1+ {[%clk 0:00:54]} 31. Kh2 {[%clk 0:00:36]}  Ke7 {[%clk 0:00:54]} 32. Qg7 {[%clk 0:00:34]}  Bd6 {[%clk 0:00:52]} 33. h4 {[%clk 0:00:06]}  Rc8 {[%clk 0:00:52]} 34. h5 {[%clk 0:00:05]}  Rc4 {[%clk 0:00:52]} 35. Kh3 {[%clk 0:00:05]}  Qa4 {[%clk 0:00:52]} 36. Kh2 {[%clk 0:00:02]}  Rh4+ {[%clk 0:00:52]} 37. Kg1 {[%clk 0:00:02]}  Qd1+ {[%clk 0:00:53]} 38. Nf1 {[%clk 0:00:03]}  Qxe2 {[%clk 0:00:52]} 39. h6 {[%clk 0:00:02]}  e4 {[%clk 0:00:50]} 40. g3 {[%clk 0:00:02]}  Rh1+ {[%clk 0:00:49]} 41. Kxh1 {[%clk 0:00:02]}  Qxf1+ {[%clk 0:00:50]} 42. Kh2 {[%clk 0:00:03]}  Qxf2+ {[%clk 0:00:50]} 43. Kh3 {[%clk 0:00:04]}  Qxf5+ {[%clk 0:00:50]} 44. Kh4 {[%clk 0:00:04]}  Qg5+ {[%clk 0:00:49]} 45. Kh3 {[%clk 0:00:04]}  Qh5+ {[%clk 0:00:45]} 46. Kg2 {[%clk 0:00:04]}  Qf3+ {[%clk 0:00:28]} 47. Kh2 {[%clk 0:00:04]}  Bxg3+ {[%clk 0:00:26]} 48. Qxg3 {[%clk 0:00:04]}  Qxg3+ {[%clk 0:00:20]} 49. Kxg3 {[%clk 0:00:04]}  Kf8 {[%clk 0:00:21]} 0-1


[Site "https://www.chess.com"]

[Event "Titled Tuesday Blitz May 31 Late 2022"]
[White "Shirov, Alexei"]
[Black "Sarana, Alexey"]
[WhiteFideId "2209390"]
[BlackFideId "24133795"]
[WhiteElo "2678"]
[BlackElo "2666"]
[Result "1-0"]
[Round "06"]
[TimeControl "180+1"]
[Date "2022.05.31"]
[WhiteClock "0:01:11"]
[BlackClock "0:00:29"]

1. e4 {[%clk 0:03:00]}  c5 {[%clk 0:03:00]} 2. Nc3 {[%clk 0:03:00]}  d6 {[%clk 0:03:01]} 3. d4 {[%clk 0:03:00]}  cxd4 {[%clk 0:03:02]} 4. Qxd4 {[%clk 0:03:00]}  Nc6 {[%clk 0:03:02]} 5. Qd2 {[%clk 0:02:59]}  g6 {[%clk 0:03:03]} 6. b3 {[%clk 0:02:58]}  Bh6 {[%clk 0:03:03]} 7. f4 {[%clk 0:02:57]}  f5 {[%clk 0:03:03]} 8. Bb2 {[%clk 0:02:52]}  Nf6 {[%clk 0:03:04]} 9. O-O-O {[%clk 0:02:44]}  Qa5 {[%clk 0:03:04]} 10. Kb1 {[%clk 0:02:32]}  fxe4 {[%clk 0:02:59]} 11. h3 {[%clk 0:02:28]}  Be6 {[%clk 0:02:46]} 12. g4 {[%clk 0:02:26]}  Bg7 {[%clk 0:02:46]} 13. Bg2 {[%clk 0:02:01]}  O-O-O {[%clk 0:02:45]} 14. Nxe4 {[%clk 0:01:53]}  Qxd2 {[%clk 0:02:15]} 15. Nxd2 {[%clk 0:01:52]}  Rhg8 {[%clk 0:02:13]} 16. Ne2 {[%clk 0:01:44]}  Bd5 {[%clk 0:02:08]} 17. Bxd5 {[%clk 0:01:37]}  Nxd5 {[%clk 0:02:08]} 18. Nc4 {[%clk 0:01:37]}  Bxb2 {[%clk 0:01:44]} 19. Kxb2 {[%clk 0:01:37]}  Nf6 {[%clk 0:01:41]} 20. Ng3 {[%clk 0:01:35]}  Rgf8 {[%clk 0:01:36]} 21. Rhe1 {[%clk 0:01:34]}  b5 {[%clk 0:01:32]} 22. Ne3 {[%clk 0:01:33]}  a6 {[%clk 0:01:30]} 23. f5 {[%clk 0:01:32]}  Ne5 {[%clk 0:01:27]} 24. Nd5 {[%clk 0:01:31]}  Nxd5 {[%clk 0:01:26]} 25. Rxd5 {[%clk 0:01:30]}  Kc7 {[%clk 0:01:26]} 26. Rd4 {[%clk 0:01:22]}  Rf7 {[%clk 0:01:19]} 27. Rf4 {[%clk 0:01:20]}  Rdf8 {[%clk 0:01:16]} 28. a4 {[%clk 0:01:19]}  Kb6 {[%clk 0:01:15]} 29. axb5 {[%clk 0:01:18]}  axb5 {[%clk 0:01:16]} 30. Ref1 {[%clk 0:01:17]}  Nc6 {[%clk 0:01:13]} 31. fxg6 {[%clk 0:01:15]}  Rxf4 {[%clk 0:00:36]} 32. Rxf4 {[%clk 0:01:15]}  Rg8 {[%clk 0:00:28]} 33. gxh7 {[%clk 0:01:14]}  Rh8 {[%clk 0:00:29]} 34. Rf7 {[%clk 0:01:14]}  Kc7 {[%clk 0:00:29]} 35. g5 {[%clk 0:01:12]}  Kd7 {[%clk 0:00:28]} 36. g6 {[%clk 0:01:11]}  Ne5 {[%clk 0:00:28]} 37. g7 {[%clk 0:01:11]}  Nxf7 {[%clk 0:00:29]} 38. g8=Q {[%clk 0:01:11]} 1-0


[Site "https://www.chess.com"]

[Event "Titled Tuesday Blitz May 31 Late 2022"]
[White "Shuvalova, Polina"]
[Black "Swiercz, Dariusz"]
[WhiteFideId "24171760"]
[BlackFideId "1126881"]
[WhiteElo "2355"]
[BlackElo "2627"]
[Result "0-1"]
[Round "06"]
[TimeControl "180+1"]
[Date "2022.05.31"]
[WhiteClock "0:00:15"]
[BlackClock "0:00:34"]

1. e4 {[%clk 0:02:52]}  e6 {[%clk 0:02:59]} 2. d4 {[%clk 0:02:51]}  d5 {[%clk 0:03:00]} 3. Nc3 {[%clk 0:02:51]}  Bb4 {[%clk 0:03:01]} 4. e5 {[%clk 0:02:51]}  c5 {[%clk 0:03:01]} 5. a3 {[%clk 0:02:51]}  Bxc3+ {[%clk 0:03:01]} 6. bxc3 {[%clk 0:02:52]}  Ne7 {[%clk 0:03:02]} 7. a4 {[%clk 0:02:52]}  Qc7 {[%clk 0:03:01]} 8. Nf3 {[%clk 0:02:51]}  h6 {[%clk 0:02:58]} 9. Be2 {[%clk 0:02:40]}  b6 {[%clk 0:02:57]} 10. Bb5+ {[%clk 0:02:38]}  Bd7 {[%clk 0:02:54]} 11. Be2 {[%clk 0:02:39]}  Nbc6 {[%clk 0:02:48]} 12. O-O {[%clk 0:02:39]}  O-O {[%clk 0:02:45]} 13. Be3 {[%clk 0:02:33]}  c4 {[%clk 0:02:27]} 14. Qc1 {[%clk 0:02:30]}  f6 {[%clk 0:02:18]} 15. exf6 {[%clk 0:02:26]}  Rxf6 {[%clk 0:02:17]} 16. g3 {[%clk 0:02:25]}  Raf8 {[%clk 0:02:16]} 17. Ne1 {[%clk 0:02:21]}  e5 {[%clk 0:01:54]} 18. dxe5 {[%clk 0:02:12]}  Nxe5 {[%clk 0:01:50]} 19. Qa3 {[%clk 0:02:13]}  Nf5 {[%clk 0:01:46]} 20. Bf4 {[%clk 0:02:11]}  g5 {[%clk 0:01:44]} 21. Bd2 {[%clk 0:01:56]}  d4 {[%clk 0:01:26]} 22. Rd1 {[%clk 0:01:43]}  Bc6 {[%clk 0:01:17]} 23. Bc1 {[%clk 0:01:23]}  Nh4 {[%clk 0:01:00]} 24. gxh4 {[%clk 0:00:44]}  gxh4 {[%clk 0:01:01]} 25. f4 {[%clk 0:00:43]}  Qg7+ {[%clk 0:00:50]} 26. Kf2 {[%clk 0:00:41]}  Rxf4+ {[%clk 0:00:45]} 27. Bxf4 {[%clk 0:00:40]}  Rxf4+ {[%clk 0:00:46]} 28. Nf3 {[%clk 0:00:39]}  Nxf3 {[%clk 0:00:44]} 29. Bxc4+ {[%clk 0:00:31]}  Kh8 {[%clk 0:00:42]} 30. Ke2 {[%clk 0:00:19]}  Qe5+ {[%clk 0:00:40]} 31. Kf2 {[%clk 0:00:15]}  Qe3+ {[%clk 0:00:37]} 32. Kg2 {[%clk 0:00:15]}  Ng5+ {[%clk 0:00:34]} 0-1


[Site "https://www.chess.com"]

[Event "Titled Tuesday Blitz May 31 Late 2022"]
[White "Silva, Miguel Antonio Neto"]
[Black "Van Foreest, Jorden"]
[WhiteFideId "1911929"]
[BlackFideId "1039784"]
[WhiteElo "2204"]
[BlackElo "2609"]
[Result "0-1"]
[Round "06"]
[TimeControl "180+1"]
[Date "2022.06.01"]
[WhiteClock "0:00:09"]
[BlackClock "0:00:42"]

1. e4 {[%clk 0:02:58]}  c5 {[%clk 0:03:00]} 2. Nf3 {[%clk 0:02:53]}  e6 {[%clk 0:03:01]} 3. d4 {[%clk 0:02:46]}  cxd4 {[%clk 0:03:02]} 4. Nxd4 {[%clk 0:02:47]}  Bc5 {[%clk 0:03:02]} 5. Nb3 {[%clk 0:02:46]}  Bb6 {[%clk 0:03:02]} 6. Nc3 {[%clk 0:02:43]}  Ne7 {[%clk 0:03:02]} 7. Bd3 {[%clk 0:02:41]}  O-O {[%clk 0:03:02]} 8. Qe2 {[%clk 0:02:41]}  f5 {[%clk 0:03:01]} 9. Be3 {[%clk 0:02:39]}  Nbc6 {[%clk 0:02:57]} 10. O-O-O {[%clk 0:02:36]}  Bxe3+ {[%clk 0:02:44]} 11. Qxe3 {[%clk 0:02:30]}  f4 {[%clk 0:02:43]} 12. Qe2 {[%clk 0:02:14]}  Ng6 {[%clk 0:02:25]} 13. h4 {[%clk 0:02:00]}  Nge5 {[%clk 0:02:17]} 14. f3 {[%clk 0:01:58]}  Qe7 {[%clk 0:01:58]} 15. Bb5 {[%clk 0:01:51]}  a6 {[%clk 0:01:55]} 16. Bxc6 {[%clk 0:01:48]}  bxc6 {[%clk 0:01:56]} 17. Qd2 {[%clk 0:01:40]}  a5 {[%clk 0:01:56]} 18. Qd4 {[%clk 0:01:33]}  Qf6 {[%clk 0:01:52]} 19. Nc5 {[%clk 0:01:28]}  Rd8 {[%clk 0:01:43]} 20. Nd3 {[%clk 0:01:08]}  Nxd3+ {[%clk 0:01:24]} 21. Rxd3 {[%clk 0:01:06]}  Qxd4 {[%clk 0:01:24]} 22. Rxd4 {[%clk 0:01:06]}  d5 {[%clk 0:01:25]} 23. Na4 {[%clk 0:01:03]}  e5 {[%clk 0:01:24]} 24. Rd2 {[%clk 0:00:59]}  Be6 {[%clk 0:01:25]} 25. Nc5 {[%clk 0:00:57]}  Bf7 {[%clk 0:01:25]} 26. exd5 {[%clk 0:00:52]}  cxd5 {[%clk 0:01:19]} 27. Re1 {[%clk 0:00:52]}  Rac8 {[%clk 0:01:01]} 28. Nd3 {[%clk 0:00:47]}  e4 {[%clk 0:01:01]} 29. fxe4 {[%clk 0:00:31]}  dxe4 {[%clk 0:01:02]} 30. Nxf4 {[%clk 0:00:32]}  Re8 {[%clk 0:01:03]} 31. a3 {[%clk 0:00:25]}  e3 {[%clk 0:00:57]} 32. Rde2 {[%clk 0:00:25]}  Re4 {[%clk 0:00:57]} 33. g3 {[%clk 0:00:24]}  Bb3 {[%clk 0:00:56]} 34. c3 {[%clk 0:00:23]}  Rd8 {[%clk 0:00:56]} 35. Ng2 {[%clk 0:00:20]}  Re6 {[%clk 0:00:56]} 36. Nxe3 {[%clk 0:00:19]}  Red6 {[%clk 0:00:55]} 37. Nc2 {[%clk 0:00:17]}  Bf7 {[%clk 0:00:49]} 38. Nd4 {[%clk 0:00:17]}  a4 {[%clk 0:00:49]} 39. Re7 {[%clk 0:00:16]}  h6 {[%clk 0:00:50]} 40. Rf1 {[%clk 0:00:16]}  Bc4 {[%clk 0:00:48]} 41. Rfe1 {[%clk 0:00:15]}  Rg6 {[%clk 0:00:49]} 42. R7e3 {[%clk 0:00:15]}  Kh7 {[%clk 0:00:48]} 43. Kd2 {[%clk 0:00:13]}  Rb8 {[%clk 0:00:47]} 44. Kc1 {[%clk 0:00:13]}  Rgb6 {[%clk 0:00:48]} 45. R3e2 {[%clk 0:00:11]}  Bxe2 {[%clk 0:00:47]} 46. Rxe2 {[%clk 0:00:12]}  Kg6 {[%clk 0:00:47]} 47. Re6+ {[%clk 0:00:11]}  Kh5 {[%clk 0:00:47]} 48. Re4 {[%clk 0:00:11]}  Rf6 {[%clk 0:00:46]} 49. Ne2 {[%clk 0:00:09]}  Rf1+ {[%clk 0:00:44]} 50. Kc2 {[%clk 0:00:09]}  Rf2 {[%clk 0:00:45]} 51. Kd2 {[%clk 0:00:07]}  Rxb2+ {[%clk 0:00:42]} 52. Kd3 {[%clk 0:00:08]}  Rf3+ {[%clk 0:00:42]} 53. Kd4 {[%clk 0:00:08]}  g5 {[%clk 0:00:42]} 54. hxg5 {[%clk 0:00:07]}  hxg5 {[%clk 0:00:43]} 55. g4+ {[%clk 0:00:07]}  Kh4 {[%clk 0:00:43]} 56. Ke5 {[%clk 0:00:07]}  Rb8 {[%clk 0:00:42]} 57. Nd4 {[%clk 0:00:08]}  Re8+ {[%clk 0:00:42]} 58. Kd5 {[%clk 0:00:08]}  Rxe4 {[%clk 0:00:43]} 59. Kxe4 {[%clk 0:00:09]}  Rxc3 {[%clk 0:00:42]} 0-1


[Site "https://www.chess.com"]

[Event "Titled Tuesday Blitz May 31 Late 2022"]
[White "Suder, Jakub"]
[Black "Jumabayev, Rinat"]
[WhiteFideId "1195310"]
[BlackFideId "13702661"]
[WhiteElo "2058"]
[BlackElo "2561"]
[Result "0-1"]
[Round "06"]
[TimeControl "180+1"]
[Date "2022.05.31"]
[WhiteClock "0:00:47"]
[BlackClock "0:00:03"]

1. d4 {[%clk 0:03:00]}  g6 {[%clk 0:03:00]} 2. c4 {[%clk 0:02:54]}  Bg7 {[%clk 0:02:59]} 3. Nc3 {[%clk 0:02:55]}  d6 {[%clk 0:02:57]} 4. e4 {[%clk 0:02:54]}  e5 {[%clk 0:02:56]} 5. Be3 {[%clk 0:02:53]}  exd4 {[%clk 0:02:50]} 6. Bxd4 {[%clk 0:02:54]}  Nf6 {[%clk 0:02:50]} 7. f3 {[%clk 0:02:41]}  Nc6 {[%clk 0:02:47]} 8. Bf2 {[%clk 0:02:41]}  O-O {[%clk 0:02:36]} 9. Nge2 {[%clk 0:02:41]}  a5 {[%clk 0:02:33]} 10. Nd4 {[%clk 0:02:39]}  Ne5 {[%clk 0:02:33]} 11. Be2 {[%clk 0:02:38]}  Nh5 {[%clk 0:02:31]} 12. g3 {[%clk 0:02:36]}  f5 {[%clk 0:02:26]} 13. exf5 {[%clk 0:02:35]}  gxf5 {[%clk 0:02:16]} 14. O-O {[%clk 0:02:34]}  f4 {[%clk 0:00:56]} 15. g4 {[%clk 0:02:31]}  Nf6 {[%clk 0:00:52]} 16. h3 {[%clk 0:02:25]}  Qe8 {[%clk 0:00:42]} 17. Kg2 {[%clk 0:02:20]}  Qf7 {[%clk 0:00:40]} 18. Rc1 {[%clk 0:02:15]}  h5 {[%clk 0:00:31]} 19. g5 {[%clk 0:02:10]}  Nh7 {[%clk 0:00:30]} 20. h4 {[%clk 0:02:10]}  Re8 {[%clk 0:00:29]} 21. Ne4 {[%clk 0:02:00]}  Nf8 {[%clk 0:00:27]} 22. Qc2 {[%clk 0:01:48]}  Nfg6 {[%clk 0:00:27]} 23. Rg1 {[%clk 0:01:44]}  a4 {[%clk 0:00:23]} 24. Rce1 {[%clk 0:01:35]}  Kh8 {[%clk 0:00:16]} 25. Nc3 {[%clk 0:01:29]}  Qd7 {[%clk 0:00:07]} 26. Rh1 {[%clk 0:01:27]}  c6 {[%clk 0:00:06]} 27. Bd3 {[%clk 0:01:25]}  Qf7 {[%clk 0:00:06]} 28. Bxg6 {[%clk 0:01:19]}  Nxg6 {[%clk 0:00:05]} 29. Rxe8+ {[%clk 0:01:18]}  Qxe8 {[%clk 0:00:06]} 30. Re1 {[%clk 0:01:17]}  Qf7 {[%clk 0:00:06]} 31. Ne4 {[%clk 0:01:15]}  Be5 {[%clk 0:00:07]} 32. Nf6 {[%clk 0:01:08]}  Bxf6 {[%clk 0:00:04]} 33. gxf6 {[%clk 0:01:08]}  Qxf6 {[%clk 0:00:05]} 34. Re8+ {[%clk 0:01:05]}  Kh7 {[%clk 0:00:05]} 35. Kg1 {[%clk 0:01:03]}  Bf5 {[%clk 0:00:04]} 36. Nxf5 {[%clk 0:00:58]}  Rxe8 {[%clk 0:00:04]} 37. c5 {[%clk 0:00:58]}  dxc5 {[%clk 0:00:04]} 38. Qxc5 {[%clk 0:00:58]}  Re5 {[%clk 0:00:04]} 39. Qd6 {[%clk 0:00:55]}  Qxf5 {[%clk 0:00:03]} 40. Qc7+ {[%clk 0:00:54]}  Re7 {[%clk 0:00:04]} 41. Qd6 {[%clk 0:00:55]}  Qe6 {[%clk 0:00:03]} 42. Qd4 {[%clk 0:00:55]}  Qd5 {[%clk 0:00:03]} 43. Qf6 {[%clk 0:00:55]}  Qxf3 {[%clk 0:00:03]} 44. Kf1 {[%clk 0:00:48]}  Qd1+ {[%clk 0:00:03]} 45. Kg2 {[%clk 0:00:48]}  Qg4+ {[%clk 0:00:03]} 46. Kf1 {[%clk 0:00:48]}  f3 {[%clk 0:00:04]} 47. Qxe7+ {[%clk 0:00:47]}  Nxe7 {[%clk 0:00:03]} 0-1


[Site "https://www.chess.com"]

[Event "Titled Tuesday Blitz May 31 Late 2022"]
[White "Taboas Rodriguez, Daniel"]
[Black "Fedoseev, Vladimir"]
[WhiteFideId "2208466"]
[BlackFideId "24130737"]
[WhiteElo "2429"]
[BlackElo "2726"]
[Result "0-1"]
[Round "06"]
[TimeControl "180+1"]
[Date "2022.05.31"]
[WhiteClock "0:01:36"]
[BlackClock "0:01:01"]

1. d4 {[%clk 0:02:59]}  Nf6 {[%clk 0:02:04]} 2. Nf3 {[%clk 0:02:59]}  g6 {[%clk 0:02:04]} 3. c4 {[%clk 0:02:59]}  Bg7 {[%clk 0:02:04]} 4. Nc3 {[%clk 0:03:00]}  O-O {[%clk 0:02:04]} 5. e4 {[%clk 0:03:01]}  d6 {[%clk 0:02:05]} 6. Be2 {[%clk 0:03:01]}  Na6 {[%clk 0:02:04]} 7. Bg5 {[%clk 0:03:01]}  c5 {[%clk 0:02:01]} 8. d5 {[%clk 0:03:01]}  h6 {[%clk 0:01:52]} 9. Bf4 {[%clk 0:02:59]}  Nh5 {[%clk 0:01:51]} 10. Be3 {[%clk 0:02:59]}  e5 {[%clk 0:01:49]} 11. g3 {[%clk 0:02:56]}  Nf6 {[%clk 0:01:38]} 12. Nd2 {[%clk 0:02:55]}  Re8 {[%clk 0:01:36]} 13. a3 {[%clk 0:02:46]}  Nc7 {[%clk 0:01:35]} 14. h4 {[%clk 0:02:39]}  h5 {[%clk 0:01:28]} 15. Nf3 {[%clk 0:02:34]}  Ng4 {[%clk 0:01:26]} 16. Bd2 {[%clk 0:02:35]}  f6 {[%clk 0:01:25]} 17. Nh2 {[%clk 0:02:30]}  Nxh2 {[%clk 0:01:23]} 18. Rxh2 {[%clk 0:02:31]}  f5 {[%clk 0:01:23]} 19. exf5 {[%clk 0:02:26]}  Bxf5 {[%clk 0:01:22]} 20. Bg5 {[%clk 0:02:23]}  Qd7 {[%clk 0:01:22]} 21. Qd2 {[%clk 0:02:23]}  e4 {[%clk 0:01:19]} 22. O-O-O {[%clk 0:02:22]}  Rab8 {[%clk 0:01:16]} 23. Rhh1 {[%clk 0:02:21]}  b5 {[%clk 0:01:15]} 24. Nxb5 {[%clk 0:02:00]}  Nxb5 {[%clk 0:01:14]} 25. cxb5 {[%clk 0:02:01]}  Rxb5 {[%clk 0:01:07]} 26. Bxb5 {[%clk 0:02:01]}  Qxb5 {[%clk 0:01:07]} 27. Rhe1 {[%clk 0:01:54]}  Rb8 {[%clk 0:01:01]} 28. Re2 {[%clk 0:01:53]}  e3 {[%clk 0:01:01]} 29. Qxe3 {[%clk 0:01:36]}  Bxb2+ {[%clk 0:01:00]} 30. Kd2 {[%clk 0:01:36]}  Qa5+ {[%clk 0:01:01]} 0-1


[Site "https://www.chess.com"]